bitfinex/quotes_SOLUSD_20251128
["timestamp","ask_amount","ask_price","bid_price","bid_amount"]
[1764350836795,7.93552718,137.45,137.41,17.48478976]
[1764350837013,0.66,137.45,137.41,17.48478976]
[1764350837199,0.66,137.44,137.42,10.2073888]
[1764350837400,3.92,137.46,137.42,8.80994492]
[1764350837617,3.92,137.46,137.44,10.2073888]
[1764350838612,10.53486046,137.46,137.44,10.2073888]
[1764350838818,0.66,137.45,137.44,10.2073888]
[1764350839496,7.93452362,137.47,137.44,10.2073888]
[1764350839817,0.66,137.46,137.44,10.2073888]
[1764350840201,0.66,137.46,137.43,7.27642936]
[1764350840407,0.66,137.46,137.43,17.48381816]
[1764350840794,18.14231831,137.46,137.42,17.48417586]
[1764350841224,0.66,137.45,137.42,7.27678706]
[1764350841430,0.66,137.45,137.41,13.4673888]
[1764350841718,104.1,137.44,137.41,10.2073888]
[1764350841922,104.1,137.43,137.4,0.1]
[1764350842137,3.26,137.42,137.4,0.1]
[1764350842304,7.27749072,137.41,137.4,0.1]
[1764350842504,7.93749072,137.41,137.4,0.1]
[1764350842703,18.14487952,137.41,137.4,0.1]
[1764350843024,7.27749072,137.41,137.4,0.1]
[1764350843212,7.93749072,137.41,137.4,0.1]
[1764350843814,104.1,137.42,137.4,10.3073888]
[1764350844019,104.1,137.42,137.41,10.2073888]
[1764350845026,104.1,137.42,137.4,0.1]
[1764350845226,104.1,137.42,137.4,10.3073888]
[1764350845227,104.76,137.42,137.4,10.3073888]
[1764350845749,104.1,137.42,137.4,10.3073888]
[1764350845903,104.1,137.42,137.41,10.2073888]
[1764350846104,10.2073888,137.46,137.41,10.2073888]
[1764350846105,0.66,137.47,137.41,10.7373888]
[1764350846313,0.66,137.47,137.44,10.2073888]
[1764350846517,7.27394675,137.48,137.46,10.2073888]
[1764350846807,7.93394675,137.48,137.46,10.2073888]
[1764350847616,7.93394675,137.48,137.44,7.27587026]
[1764350847825,0.66,137.47,137.44,7.27587026]
[1764350848025,0.66,137.47,137.44,17.48325906]
[1764350848231,0.66,137.47,137.45,10.2073888]
[1764350849328,3.26,137.49,137.46,10.2073888]
[1764350849534,0.66,137.51,137.48,10.2073888]
[1764350849828,0.66,137.5,137.48,10.2073888]
[1764350850707,0.66,137.52,137.49,10.2073888]
[1764350850916,0.66,137.52,137.5,10.2073888]
[1764350851224,7.27103473,137.54,137.5,10.2073888]
[1764350851438,7.93103473,137.54,137.5,10.2073888]
[1764350851639,0.66,137.53,137.5,10.2073888]
[1764350852609,7.93121657,137.53,137.5,10.2073888]
[1764350853131,0.66,137.52,137.5,10.2073888]
[1764350853333,0.66,137.52,137.49,7.27321155]
[1764350853535,0.66,137.52,137.5,10.2073888]
[1764350854245,3.26,137.55,137.51,10.2073888]
[1764350854537,0.66,137.54,137.47,8.80994492]
[1764350854710,10.2073888,137.53,137.47,16.0842045]
[1764350854910,10.2073888,137.53,137.48,10.2073888]
[1764350855128,0.68,137.52,137.48,10.2073888]
[1764350855527,0.68,137.52,137.49,10.2073888]
[1764350855712,7.95176688,137.52,137.49,10.2073888]
[1764350855907,0.68,137.52,137.49,10.2073888]
[1764350856108,0.68,137.52,137.47,16.08409386]
[1764350856109,0.68,137.51,137.47,16.08409386]
[1764350856343,10.2073888,137.5,137.45,10.2073888]
[1764350856508,10.2073888,137.48,137.43,10.2073888]
[1764350857008,10.2073888,137.46,137.41,16.308864]
[1764350857329,13.4673888,137.45,137.4,17.58527088]
[1764350857714,0.68,137.44,137.4,17.58527088]
[1764350858516,0.68,137.44,137.41,10.2073888]
[1764350858716,0.68,137.44,137.42,10.2073888]
[1764350859123,0.68,137.44,137.4,0.1]
[1764350859325,0.68,137.44,137.41,10.2073888]
[1764350859527,0.68,137.44,137.4,7.37798863]
[1764350859720,0.68,137.44,137.41,10.2073888]
[1764350859934,0.68,137.44,137.41,17.48458127]
[1764350860931,0.68,137.44,137.42,10.2073888]
[1764350861522,7.27492651,137.46,137.42,7.2767303]
[1764350861729,0.68,137.45,137.43,10.2073888]
[1764350861939,7.95492651,137.46,137.43,10.2073888]
[1764350862956,0.68,137.45,137.43,10.2073888]
[1764350863249,104.1,137.49,137.44,10.7373888]
[1764350863417,7.27384507,137.48,137.46,10.2073888]
[1764350863752,104.1,137.47,137.45,10.2073888]
[1764350865149,0.68,137.46,137.44,17.48305645]
[1764350866839,104.1,137.47,137.44,17.48305645]
[1764350867042,104.78,137.47,137.44,17.48305645]
[1764350867339,104.78,137.47,137.45,10.2073888]
[1764350867539,104.1,137.47,137.46,10.2073888]
[1764350868563,104.1,137.47,137.46,5.8767165]
[1764350869063,7.95334967,137.49,137.46,5.8767165]
[1764350869261,0.68,137.48,137.45,7.27508592]
[1764350869458,0.68,137.48,137.45,13.15180242]
[1764350869689,0.68,137.48,137.46,5.8767165]
[1764350869971,7.27334967,137.49,137.47,5.8767165]
[1764350870145,104.78,137.49,137.47,5.8767165]
[1764350871676,104.78,137.49,137.46,13.15132503]
[1764350872685,104.78,137.49,137.47,2.46795167]
[1764350873481,0.68,137.48,137.46,2.46795167]
[1764350873691,0.68,137.48,137.45,7.27516977]
[1764350873990,104.1,137.47,137.44,9.74353778]
[1764350874175,104.1,137.47,137.45,2.46795167]
[1764350874695,0.68,137.46,137.42,26.84537146]
[1764350874864,0.68,137.46,137.44,5.87700368]
[1764350875069,104.1,137.47,137.45,5.87700368]
[1764350875567,104.1,137.47,137.46,5.87700368]
[1764350875893,0.68,137.46,137.44,5.87700368]
[1764350876387,107.36,137.47,137.44,5.87700368]
[1764350876563,108.04,137.47,137.45,5.87700368]
[1764350876887,0.68,137.46,137.43,13.15320154]
[1764350877586,0.68,137.46,137.42,5.87700368]
[1764350877773,104.1,137.45,137.42,5.87700368]
[1764350878166,0.68,137.44,137.42,5.87700368]
[1764350878368,104.1,137.45,137.42,13.15385241]
[1764350878583,104.78,137.45,137.42,13.15385241]
[1764350879866,0.68,137.44,137.42,13.15385241]
[1764350880499,104.1,137.43,137.42,5.87700368]
[1764350880784,104.1,137.43,137.4,0.1]
[1764350880990,0.68,137.42,137.4,0.1]
[1764350881197,104.1,137.43,137.41,5.87700368]
[1764350881569,104.1,137.43,137.42,5.87700368]
[1764350882583,104.1,137.43,137.42,13.15396482]
[1764350882906,104.1,137.43,137.42,22.49390974]
[1764350883705,104.1,137.43,137.42,21.96390974]
[1764350883915,0.68,137.46,137.42,16.08690606]
[1764350884075,0.68,137.46,137.42,21.96390974]
[1764350884277,0.68,137.46,137.44,5.87700368]
[1764350884804,104.1,137.47,137.45,5.87700368]
[1764350885099,104.1,137.47,137.46,5.87700368]
[1764350885702,104.78,137.47,137.44,25.46558281]
[1764350886010,104.1,137.47,137.46,5.87700368]
[1764350886903,104.1,137.47,137.46,13.15184727]
[1764350894300,104.1,137.47,137.46,5.87700368]
[1764350894607,112.05431862,137.47,137.43,2.46894188]
[1764350894780,0.68,137.46,137.43,2.46894188]
[1764350895280,0.68,137.46,137.44,2.46894188]
[1764350896024,107.36,137.47,137.45,2.46894188]
[1764350896025,104.1,137.47,137.45,2.46894188]
[1764350896175,0.68,137.46,137.45,2.46894188]
[1764350896380,0.68,137.46,137.44,2.46894188]
[1764350896878,0.68,137.46,137.44,9.74484165]
[1764350897080,0.68,137.47,137.44,7.27589977]
[1764350897279,0.68,137.47,137.46,2.46894188]
[1764350897998,0.68,137.47,137.45,8.80994492]
[1764350898210,109.82894188,137.51,137.46,2.46894188]
[1764350898385,0.68,137.48,137.47,7.27431439]
[1764350898789,0.68,137.48,137.46,7.27460923]
[1764350899109,0.68,137.49,137.47,2.46894188]
[1764350899818,0.68,137.49,137.46,7.27460923]
[1764350900017,0.68,137.49,137.47,2.46894188]
[1764350901207,0.68,137.49,137.46,9.74355111]
[1764350901407,0.68,137.49,137.46,7.27460923]
[1764350901620,0.68,137.49,137.46,9.74355111]
[1764350902723,7.95332271,137.49,137.46,7.27460923]
[1764350902928,13.68226459,137.49,137.44,7.27548172]
[1764350903088,104.78,137.48,137.44,9.7444236]
[1764350903293,104.78,137.48,137.44,7.27548172]
[1764350903543,108.04,137.47,137.43,7.27633549]
[1764350903727,110.50894188,137.47,137.43,7.27633549]
[1764350903912,0.68,137.46,137.43,7.27633549]
[1764350904222,104.1,137.45,137.43,7.27633549]
[1764350904413,104.1,137.45,137.43,9.74527737]
[1764350904613,0.68,137.44,137.43,7.27633549]
[1764350905418,0.68,137.44,137.4,0.1]
[1764350905419,3.14894188,137.44,137.4,0.1]
[1764350905789,3.94,137.43,137.4,0.1]
[1764350906304,0.68,137.42,137.4,0.1]
[1764350906615,0.68,137.42,137.4,2.56894188]
[1764350906992,0.68,137.42,137.41,2.46894188]
[1764350907195,3.94,137.44,137.4,25.57304534]
[1764350907431,0.68,137.43,137.4,25.57304534]
[1764350907674,0.68,137.43,137.41,2.46894188]
[1764350907964,0.68,137.43,137.42,2.46894188]
[1764350908333,3.94,137.43,137.4,9.84693628]
[1764350908747,0.68,137.42,137.4,9.84693628]
[1764350909149,3.26,137.43,137.41,2.46894188]
[1764350909351,11.21647655,137.43,137.41,2.46894188]
[1764350909759,10.53587852,137.45,137.41,7.27710884]
[1764350910056,10.53587852,137.45,137.42,2.46894188]
[1764350910057,3.26,137.45,137.42,2.46894188]
[1764350910260,0.68,137.44,137.42,2.46894188]
[1764350910560,3.14894188,137.44,137.4,0.1]
[1764350910952,0.68,137.43,137.4,0.1]
[1764350911171,104.1,137.42,137.4,0.1]
[1764350911571,0.68,137.41,137.4,0.1]
[1764350912386,11.21749072,137.41,137.4,0.1]
[1764350914092,13.6864326,137.41,137.4,0.1]
[1764350914579,17.10313868,137.41,137.4,0.1]
[1764350914977,26.19740674,137.41,137.39,0.1]
[1764350915176,26.19740674,137.41,137.35,0.1]
[1764350915177,16.308864,137.36,137.35,0.1]
[1764350915382,3.93,137.36,137.35,0.1]
[1764350915974,11.21013977,137.36,137.35,0.1]
[1764350916895,17.09578773,137.36,137.35,0.1]
[1764350917202,17.09578773,137.36,137.33,1.1]
[1764350917378,17.09578773,137.36,137.25,2.0027419]
[1764350917379,27.74564796,137.32,137.25,1.9027419]
[1764350917575,14.97991602,137.26,137.25,1e-08]
[1764350917779,111.40225309,137.26,137.25,1e-08]
[1764350917981,115.99769677,137.26,137.25,1e-08]
[1764350918293,33.30995564,137.26,137.25,1e-08]
[1764350918481,36.23126292,137.26,137.25,1e-08]
[1764350918686,19.92239892,137.26,137.25,1e-08]
[1764350920199,14.03675096,137.26,137.25,1e-08]
[1764350920402,36.23126292,137.26,137.25,1e-08]
[1764350920572,19.92239892,137.26,137.25,1e-08]
[1764350920902,29.01666698,137.26,137.25,1e-08]
[1764350921279,104.01666698,137.26,137.25,1e-08]
[1764350921908,18.21211162,137.28,137.25,1e-08]
[1764350922072,7.28491294,137.27,137.25,0.67000001]
[1764350922308,10.54491294,137.27,137.25,1e-08]
[1764350922569,75.0,137.32,137.25,1e-08]
[1764350922570,18.20771711,137.31,137.26,6.55564796]
[1764350922766,36.97929013,137.33,137.28,5.88564796]
[1764350922767,10.54226041,137.32,137.28,5.88564796]
[1764350923193,0.57,137.31,137.27,5.88564796]
[1764350923393,16.42790837,137.32,137.27,6.55564796]
[1764350923394,28.74791144,137.32,137.27,6.55564796]
[1764350923585,0.57,137.31,137.27,6.55564796]
[1764350923896,0.57,137.31,137.25,1e-08]
[1764350923897,5.88564796,137.29,137.25,1e-08]
[1764350924076,3.26,137.28,137.25,1e-08]
[1764350924469,3.26,137.28,137.25,5.88564797]
[1764350925094,3.26,137.28,137.25,1e-08]
[1764350925292,3.26,137.28,137.25,5.88564797]
[1764350925490,0.57,137.27,137.25,1e-08]
[1764350925669,6.45564796,137.27,137.25,1e-08]
[1764350926092,5.88564796,137.27,137.25,1e-08]
[1764350926285,0.57,137.26,137.25,1e-08]
[1764350926579,6.45564796,137.26,137.25,1e-08]
[1764350927285,13.74109164,137.26,137.25,1e-08]
[1764350928175,30.04995564,137.26,137.25,1e-08]
[1764350928581,41.72460134,137.26,137.25,1e-08]
[1764350929182,63.58460134,137.26,137.25,1e-08]
[1764350929400,41.72460134,137.26,137.25,1e-08]
[1764350929598,44.98460134,137.26,137.25,1e-08]
[1764350929777,34.71234527,137.26,137.25,1e-08]
[1764350929979,41.72460134,137.26,137.25,1e-08]
[1764350930502,44.98460134,137.26,137.25,1e-08]
[1764350930882,23.59690159,137.26,137.25,1e-08]
[1764350931088,7.28446919,137.28,137.25,0.67000001]
[1764350931492,10.27225607,137.27,137.25,1e-08]
[1764350931699,3.26,137.26,137.25,1e-08]
[1764350932095,13.53225607,137.26,137.25,1e-08]
[1764350932406,3.26,137.26,137.25,1e-08]
[1764350932618,10.54544368,137.26,137.25,1e-08]
[1764350932819,37.69656375,137.26,137.25,1e-08]
[1764350933106,53.79554511,137.26,137.25,1e-08]
[1764350933474,121.58094917,137.26,137.25,1e-08]
[1764350934287,112.77100425,137.26,137.25,1e-08]
[1764350934691,27.21442504,137.26,137.25,1e-08]
[1764350934981,37.12656375,137.26,137.25,1e-08]
[1764350935512,37.69656375,137.26,137.25,1e-08]
[1764350935716,18.23189009,137.27,137.25,1e-08]
[1764350936007,3.26,137.29,137.25,10.94225608]
[1764350936202,3.26,137.29,137.26,0.67]
[1764350936405,10.54392062,137.29,137.26,0.67]
[1764350937340,69.07362902,137.35,137.28,20.54451214]
[1764350937341,1e-08,137.35,137.28,20.54451214]
[1764350937506,3.80502418,137.42,137.41,27.1188089]
[1764350937712,0.67,137.47,137.46,1.99999998]
[1764350937893,3.95,137.47,137.44,1.99999998]
[1764350938098,11.22431439,137.47,137.46,1.99999998]
[1764350938299,0.67,137.46,137.44,1.99999998]
[1764350938484,27.25112007,137.46,137.41,1.99999998]
[1764350938683,10.94225607,137.45,137.4,12.27225605]
[1764350938996,13.55225607,137.44,137.4,1.99999998]
[1764350939197,3.95,137.44,137.39,1.99999998]
[1764350939497,0.67,137.43,137.39,12.27225605]
[1764350939889,16.308864,137.44,137.42,10.27225607]
[1764350940105,19.568864,137.44,137.41,12.27225605]
[1764350940313,20.238864,137.44,137.41,12.27225605]
[1764350940498,27.51480263,137.44,137.41,12.27225605]
[1764350941610,0.67,137.43,137.41,12.27225605]
[1764350941811,0.67,137.43,137.4,12.27225605]
[1764350942389,104.1,137.42,137.4,12.27225605]
[1764350942696,104.1,137.42,137.4,1.99999998]
[1764350942900,104.77,137.42,137.4,1.99999998]
[1764350943799,104.77,137.42,137.41,1.99999998]
[1764350944204,104.1,137.42,137.41,1.99999998]
[1764350944410,104.1,137.42,137.41,12.27225605]
[1764350945516,104.1,137.42,137.41,1.99999998]
[1764350948122,18.18839524,137.46,137.43,1.99999998]
[1764350948123,3.26,137.46,137.43,1.99999998]
[1764350948306,3.92,137.46,137.43,12.27225605]
[1764350948503,3.92,137.46,137.43,1.99999998]
[1764350948699,11.1948501,137.46,137.43,12.27225605]
[1764350950397,0.66,137.45,137.42,1.99999998]
[1764350950593,0.66,137.45,137.4,1.99999998]
[1764350950594,7.27696114,137.42,137.4,1.99999998]
[1764350950812,3.26,137.41,137.39,12.27225605]
[1764350951998,3.26,137.41,137.39,1.99999998]
[1764350952223,0.66,137.4,137.38,1.99999998]
[1764350952404,3.92,137.41,137.39,1.99999998]
[1764350952606,7.27802037,137.4,137.37,12.27225605]
[1764350952819,7.93802037,137.4,137.36,1.99999998]
[1764350953023,0.66,137.39,137.32,1.99999998]
[1764350953336,3.26,137.38,137.35,12.27225605]
[1764350953494,3.26,137.38,137.35,1.99999998]
[1764350954010,14.19225607,137.38,137.35,1.99999998]
[1764350954737,18.21186588,137.37,137.35,1.99999998]
[1764350955336,7.93960981,137.37,137.35,1.99999998]
[1764350955901,3.26,137.38,137.36,1.99999998]
[1764350956306,11.19921539,137.38,137.36,1.99999998]
[1764350956606,7.28013977,137.36,137.32,12.27225605]
[1764350957325,7.28013977,137.36,137.33,1.99999998]
[1764350957832,0.66,137.35,137.32,1.99999998]
[1764350958021,3.92,137.35,137.34,1.99999998]
[1764350958327,14.19225607,137.35,137.32,1.99999998]
[1764350958622,3.92,137.35,137.32,1.99999998]
[1764350958812,3.26,137.35,137.32,12.27225605]
[1764350959610,3.26,137.35,137.33,1.99999998]
[1764350960401,3.92,137.35,137.33,1.99999998]
[1764350960617,11.20069793,137.35,137.33,1.99999998]
[1764350960927,20.812954,137.35,137.33,1.99999998]
[1764350961111,0.66,137.34,137.33,1.99999998]
[1764350961502,0.66,137.34,137.32,1.99999998]
[1764350961712,0.66,137.34,137.33,1.99999998]
[1764350961924,20.812954,137.35,137.33,1.99999998]
[1764350962126,21.472954,137.35,137.33,1.99999998]
[1764350962312,11.20069793,137.35,137.33,1.99999998]
[1764350962825,11.20069793,137.35,137.32,1.99999998]
[1764350963005,7.94120718,137.34,137.32,1.99999998]
[1764350963205,7.28120718,137.34,137.33,1.99999998]
[1764350963634,3.26,137.35,137.33,1.99999998]
[1764350964132,104.1,137.34,137.33,1.99999998]
[1764350966635,122.29662276,137.39,137.33,21.08220097]
[1764350966818,104.1,137.38,137.36,1.99999998]
[1764350967360,104.76,137.38,137.36,1.99999998]
[1764350967708,112.03926219,137.38,137.36,1.99999998]
[1764350968442,115.29926219,137.38,137.36,1.99999998]
[1764350969033,115.29926219,137.38,137.37,12.27225605]
[1764350969034,104.1,137.38,137.37,12.27225605]
[1764350970732,104.1,137.38,137.37,28.36181078]
[1764350971542,111.3769882,137.42,137.4,1.99999998]
[1764350971709,115.2969882,137.42,137.4,1.99999998]
[1764350972034,0.66,137.41,137.37,1.99999998]
[1764350972340,117.63225607,137.4,137.36,1.99999998]
[1764350972514,7.27907992,137.38,137.36,1.99999998]
[1764350972717,10.53907992,137.38,137.36,1.99999998]
[1764350973039,0.66,137.37,137.36,1.99999998]
[1764350973233,11.19907992,137.38,137.36,1.99999998]
[1764350974536,10.93225607,137.37,137.29,0.68]
[1764350974711,16.308864,137.34,137.3,0.68]
[1764350974911,29.84112007,137.34,137.3,0.68]
[1764350975112,30.56112007,137.34,137.3,0.68]
[1764350975337,10.27225607,137.32,137.27,0.71]
[1764350975538,3.26,137.31,137.27,10.98225607]
[1764350975922,3.26,137.31,137.28,0.71]
[1764350976519,10.54299985,137.31,137.28,0.71]
[1764350977132,11.26299985,137.31,137.26,18.26752886]
[1764350977442,11.26299985,137.31,137.27,0.71]
[1764350977443,21.53525592,137.31,137.27,0.71]
[1764350977754,20.81525592,137.31,137.27,0.71]
[1764350977921,10.54299985,137.31,137.27,0.71]
[1764350978453,0.72,137.3,137.26,10.27225607]
[1764350978629,1.99999999,137.38,137.29,26.36605269]
[1764350978630,0.72,137.37,137.29,26.36605269]
[1764350978835,3.98,137.37,137.32,10.27225607]
[1764350979150,14.25225607,137.37,137.31,10.27225607]
[1764350979525,14.25225607,137.37,137.31,10.98225607]
[1764350979739,13.53225607,137.37,137.31,10.98225607]
[1764350979935,10.99225607,137.36,137.31,0.71]
[1764350980151,0.72,137.36,137.31,0.71]
[1764350980323,3.26,137.35,137.31,10.98225607]
[1764350980523,3.26,137.35,137.31,0.71]
[1764350980759,10.54071529,137.35,137.32,0.71]
[1764350980921,16.308864,137.38,137.34,10.27225607]
[1764350981124,18.19486629,137.41,137.35,10.27225607]
[1764350981125,3.26,137.39,137.35,10.27225607]
[1764350981743,3.26,137.39,137.36,10.98225607]
[1764350982241,10.5385532,137.39,137.36,10.98225607]
[1764350983148,3.26,137.39,137.37,0.71]
[1764350983326,26.19286774,137.41,137.37,10.98225607]
[1764350983524,3.26,137.4,137.37,10.98225607]
[1764350984034,3.26,137.4,137.38,0.71]
[1764350984441,10.5380847,137.4,137.38,0.71]
[1764350984638,10.5380847,137.4,137.37,10.27225607]
[1764350984954,11.2580847,137.4,137.36,7.27998028]
[1764350985164,11.2580847,137.4,137.36,18.26223635]
[1764350985745,0.72,137.39,137.35,10.27225607]
[1764350986258,28.73313564,137.4,137.36,0.71]
[1764350986569,0.72,137.39,137.35,10.98225607]
[1764350986920,7.27907992,137.38,137.35,10.98225607]
[1764350987126,7.27907992,137.38,137.33,18.26385018]
[1764350987325,7.99907992,137.38,137.34,0.71]
[1764350987628,104.82,137.37,137.32,16.09207794]
[1764350987832,104.82,137.37,137.33,10.98225607]
[1764350987833,104.1,137.36,137.33,10.98225607]
[1764350988655,111.38022258,137.36,137.33,0.71]
[1764350988823,111.38022258,137.36,137.33,5.88715609]
[1764350989025,111.38022258,137.36,137.34,0.71]
[1764350989432,111.38022258,137.36,137.33,5.88715609]
[1764350989633,112.10022258,137.36,137.32,13.16928911]
[1764350989938,112.10022258,137.36,137.32,13.87928911]
[1764350990134,8.00022258,137.36,137.32,13.16928911]
[1764350990330,8.00022258,137.36,137.33,0.71]
[1764350990539,7.28022258,137.36,137.33,0.71]
[1764350991148,7.28022258,137.36,137.33,6.59715609]
[1764350991843,3.26,137.37,137.33,13.87885037]
[1764350992045,3.26,137.37,137.35,5.88715609]
[1764350992046,19.568864,137.37,137.35,5.88715609]
[1764350992368,16.308864,137.37,137.35,6.59715609]
[1764350992527,16.308864,137.37,137.33,7.28169428]
[1764350992528,24.80031221,137.42,137.36,6.59715609]
[1764350992733,7.27749072,137.41,137.37,5.88715609]
[1764350993227,7.99749072,137.41,137.37,6.59715609]
[1764350993430,7.27749072,137.41,137.38,0.71]
[1764350993632,10.53712505,137.42,137.38,0.71]
[1764350993849,11.25712505,137.42,137.38,0.71]
[1764350994042,0.72,137.41,137.37,5.88715609]
[1764350994242,0.72,137.41,137.37,6.59715609]
[1764350994964,16.42428114,137.42,137.37,6.59715609]
[1764350994965,28.7295279,137.42,137.38,0.71]
[1764350995264,35.33668399,137.42,137.38,0.71]
[1764350995942,29.4495279,137.42,137.38,0.71]
[1764350996258,35.33668399,137.42,137.38,0.71]
[1764350996948,29.4495279,137.42,137.38,0.71]
[1764350997150,35.33668399,137.42,137.38,0.71]
[1764350997334,34.61668399,137.42,137.38,0.71]
[1764350997658,35.33668399,137.42,137.38,0.71]
[1764350998959,0.72,137.41,137.38,0.71]
[1764350999156,7.27802037,137.4,137.38,0.71]
[1764350999859,3.98,137.39,137.35,6.59715609]
[1764351000364,110.70715609,137.38,137.28,36.42108875]
[1764351000563,109.98715609,137.37,137.3,18.91788758]
[1764351000744,3.26,137.36,137.31,5.88715609]
[1764351001059,111.37970352,137.37,137.33,7.28154056]
[1764351001239,6.60715609,137.36,137.29,3.26]
[1764351001436,117.26685961,137.37,137.32,5.88715609]
[1764351001661,129.57872805,137.37,137.33,5.88715609]
[1764351001860,130.29872805,137.37,137.33,5.88715609]
[1764351002058,130.29872805,137.37,137.33,6.59715609]
[1764351002659,130.29872805,137.37,137.33,0.71]
[1764351002842,130.29872805,137.37,137.33,6.59715609]
[1764351003463,132.83872805,137.37,137.34,0.71]
[1764351004072,0.72,137.41,137.36,5.88715609]
[1764351004241,3.26,137.4,137.35,5.88715609]
[1764351004443,3.26,137.4,137.35,6.59715609]
[1764351004662,3.98,137.4,137.36,0.71]
[1764351005237,5.88715609,137.38,137.32,8.00176342]
[1764351005436,3.26,137.37,137.33,5.88715609]
[1764351005657,3.26,137.37,137.33,6.60715609]
[1764351005837,6.60715609,137.39,137.34,0.72]
[1764351006036,3.26,137.38,137.34,0.72]
[1764351006259,7.27960981,137.37,137.34,0.72]
[1764351006434,7.27960981,137.37,137.34,6.60715609]
[1764351006640,7.27960981,137.37,137.34,5.88715609]
[1764351006838,7.27960981,137.37,137.34,6.60715609]
[1764351007255,7.27960981,137.37,137.34,0.72]
[1764351007762,110.70715609,137.36,137.32,7.28215792]
[1764351007965,110.70715609,137.36,137.3,6.60715609]
[1764351007966,3.26,137.35,137.3,6.60715609]
[1764351008266,9.86715609,137.35,137.29,13.17078069]
[1764351008463,7.28119994,137.34,137.31,5.88715609]
[1764351008852,7.28119994,137.34,137.3,0.72]
[1764351008853,8.00119994,137.34,137.3,5.88715609]
[1764351009055,7.28119994,137.34,137.31,0.72]
[1764351009468,8.00119994,137.34,137.3,7.28307818]
[1764351009680,5.88715609,137.31,137.27,8.80994492]
[1764351009866,5.88715609,137.28,137.25,1e-08]
[1764351010042,3.26,137.3,137.25,1e-08]
[1764351010043,5.88715609,137.26,137.25,1e-08]
[1764351010346,3.26,137.29,137.25,6.6071561]
[1764351010553,3.26,137.29,137.26,5.88715609]
[1764351010740,25.48419979,137.34,137.28,5.88715609]
[1764351010741,32.09135588,137.34,137.28,5.88715609]
[1764351011063,3.26,137.33,137.28,6.60715609]
[1764351011244,16.308864,137.34,137.29,0.72]
[1764351011563,11.25818611,137.4,137.33,13.16888622]
[1764351011864,18.19291607,137.42,137.37,5.88715609]
[1764351011865,35.22178007,137.42,137.37,5.88715609]
[1764351012062,3.26,137.41,137.37,5.88715609]
[1764351012262,5.88715609,137.43,137.38,6.60715609]
[1764351012468,0.72,137.46,137.4,5.88715609]
[1764351012763,7.99325623,137.49,137.4,16.308864]
[1764351013067,9.86715609,137.48,137.43,5.88715609]
[1764351013240,0.72,137.52,137.47,5.88715609]
[1764351013441,0.72,137.52,137.49,5.88715609]
[1764351013442,3.26,137.52,137.49,5.88715609]
[1764351013644,3.26,137.52,137.45,16.08518335]
[1764351013935,3.26,137.52,137.49,5.88715609]
[1764351014166,3.26,137.52,137.48,5.88715609]
[1764351014364,5.88715609,137.51,137.46,5.88715609]
[1764351014564,5.88715609,137.51,137.45,8.80994492]
[1764351014565,6.60715609,137.51,137.45,14.69710101]
[1764351014764,0.72,137.51,137.46,5.88715609]
[1764351014968,5.88715609,137.51,137.45,15.38710101]
[1764351015155,3.26,137.52,137.43,9.83715609]
[1764351015156,5.88715609,137.49,137.43,9.83715609]
[1764351015463,7.27219838,137.51,137.47,5.88715609]
[1764351015647,7.27219838,137.51,137.47,6.57715609]
[1764351015844,11.23181141,137.52,137.47,6.57715609]
[1764351016473,0.2,137.53,137.49,5.88715609]
[1764351016761,0.2,137.53,137.49,14.69710101]
[1764351016965,0.9,137.53,137.48,31.69596501]
[1764351017168,0.9,137.53,137.48,15.38710101]
[1764351017384,0.9,137.53,137.48,25.11880892]
[1764351017385,0.7,137.52,137.48,25.11880892]
[1764351017542,7.27219838,137.51,137.45,8.80994492]
[1764351017841,5.88715609,137.5,137.45,8.80994492]
[1764351018037,5.88715609,137.5,137.45,14.69710101]
[1764351018242,5.88715609,137.5,137.45,15.38710101]
[1764351018549,13.85935447,137.51,137.46,0.69]